fUSD/lending_fUSD_20240502
["ID","MTS","AMOUNT","RATE_DAILY","PERIOD"]
[325308411,1714689857154,-500.0,0.00046849,30]
[325308412,1714689857187,-887.82,0.00046849,30]
[325308413,1714689857220,-500.0,0.00046849,30]
[325308414,1714689857254,-4435.65,0.00046849,30]
[325308415,1714689857288,-500.0,0.00046849,30]
[325308416,1714689857325,-501.99774731,0.00046849,30]
[325308417,1714689857357,-15196.45,0.00046849,30]
[325308418,1714689857391,-500.0,0.00046849,30]
[325308419,1714689857424,-500.0,0.00046849,30]
[325308420,1714689857456,-435.04655909,0.00046849,30]
[325308421,1714689857491,-500.0,0.00046849,30]
[325308422,1714689857522,-671.49,0.00046849,30]
[325308423,1714689857558,-170.57132122,0.00046849,30]
[325308424,1714689857596,-2767.24,0.00046849,30]
[325308425,1714689857630,-869.09,0.00046849,30]
[325308426,1714689857662,-152.71750879,0.00046849,30]
[325308427,1714689857700,-500.0,0.00046849,30]
[325308428,1714689857738,-1966.29,0.00046849,30]
[325308429,1714689857771,-1709.23,0.00046849,30]
[325308430,1714689857806,-153.24499919,0.00046849,30]
[325308431,1714689857839,-500.0,0.00046849,30]
[325308432,1714689857874,-1643.03,0.00046849,30]
[325308433,1714689857910,-2259.88,0.00046849,30]
[325308434,1714689857942,-500.0,0.00046849,30]
[325308435,1714689857975,-3304.61,0.00046849,30]
[325308436,1714689858008,-1999.66,0.00046849,30]
[325308437,1714689858043,-1061.68,0.00046849,30]
[325308438,1714689858078,-500.0,0.00046849,30]
[325308439,1714689858110,-500.0,0.00046849,30]
[325308440,1714689858144,-500.0,0.00046849,30]
[325308441,1714689858176,-500.0,0.00046849,30]
[325308442,1714689858209,-1222.6,0.00046849,30]
[325308443,1714689858245,-3941.17,0.00046849,30]
[325308444,1714689858282,-8072.77,0.00046849,30]
[325308445,1714689858318,-500.0,0.00046849,30]
[325308446,1714689858355,-1002.6,0.00046849,30]
[325308447,1714689858461,-1204.1,0.00046849,30]
[325308448,1714689858502,-1187.91,0.00046849,30]
[325308449,1714689858541,-6791.31,0.00046849,30]
[325308450,1714689858579,-2714.06,0.00046849,30]
[325308451,1714689858614,-4118.92,0.00046849,30]
[325308452,1714689858651,-500.0,0.00046849,30]
[325308453,1714689858689,-5072.35,0.00046849,30]
[325308454,1714689858733,-1331.31,0.00046849,30]
[325308455,1714689858771,-500.0,0.00046849,30]
[325308456,1714689858811,-1625.26,0.00046849,30]
[325308457,1714689858848,-500.0,0.00046849,30]
[325308458,1714689858885,-500.0,0.00046849,30]
[325308459,1714689858927,-1857.16,0.00046849,30]
[325308460,1714689858966,-500.0,0.00046849,30]
[325308461,1714689859006,-4199.1,0.00046849,30]
[325308462,1714689859040,-500.0,0.00046849,30]
[325308463,1714689859072,-2852.05,0.00046849,30]
[325308464,1714689859103,-500.0,0.00046849,30]
[325308465,1714689859136,-500.0,0.00046849,30]
[325308466,1714689859170,-2057.52,0.00046849,30]
[325308467,1714689859203,-500.0,0.00046849,30]
[325308468,1714689859234,-500.0,0.00046849,30]
[325308469,1714689859265,-3366.55,0.00046849,30]
[325308470,1714689859299,-10016.31,0.00046849,30]
[325308471,1714689859336,-2552.38,0.00046849,30]
[325308472,1714689859372,-500.0,0.00046849,30]
[325308473,1714689859406,-22899.8,0.00046849,30]
[325308474,1714689859438,-500.0,0.00046849,30]
[325308475,1714689859472,-1385.0,0.00046849,30]
[325308476,1714689859505,-24936.33,0.00046849,30]
[325308477,1714689859539,-500.0,0.00046849,30]
[325308478,1714689859576,-500.0,0.00046849,30]
[325308479,1714689859609,-500.0,0.00046849,30]
[325308480,1714689859644,-2215.41,0.00046849,30]
[325308481,1714689859679,-500.0,0.00046849,30]
[325308482,1714689859711,-618.4,0.00046849,30]
[325308483,1714689859742,-2313.03,0.00046849,30]
[325308484,1714689859775,-500.0,0.00046849,30]
[325308485,1714689859810,-500.0,0.00046849,30]
[325308486,1714689859845,-1038.6,0.00046849,30]
[325308487,1714689859882,-676.95,0.00046849,30]
[325308488,1714689859915,-14077.11,0.00046849,30]
[325308489,1714689859946,-4321.96,0.00046849,30]
[325308490,1714689859978,-551.5,0.00046849,30]
[325308491,1714689860015,-500.0,0.00046849,30]
[325308492,1714689860051,-500.0,0.00046849,30]
[325308493,1714689860086,-1438.0,0.00046849,30]
[325308494,1714689860120,-2018.42,0.00046849,30]
[325308495,1714689860154,-1699.71,0.00046849,30]
[325308496,1714689860187,-500.0,0.00046849,30]
[325308497,1714689860220,-877.12,0.00046849,30]
[325308498,1714689860254,-820.08,0.00046849,30]
[325308499,1714689860288,-504.15893976,0.00046849,30]
[325308500,1714689860323,-500.0,0.00046849,30]
[325308501,1714689860356,-5279.05,0.00046849,30]
[325308502,1714689860390,-500.0,0.00046849,30]
[325308503,1714689860428,-60918.49,0.00046849,30]
[325308504,1714689860465,-500.0,0.00046849,30]
[325308505,1714689860499,-500.0,0.00046849,30]
[325308506,1714689860532,-989.75,0.00046849,30]
[325308507,1714689860565,-2834.33,0.00046849,30]
[325308508,1714689860602,-5947.98,0.00046849,30]
[325308509,1714689860639,-500.0,0.00046849,30]
[325308510,1714689860675,-4901.01,0.00046849,30]
[325308511,1714689860709,-500.0,0.00046849,30]
[325308512,1714689860744,-1441.3,0.00046849,30]
[325308513,1714689860779,-1753.43,0.00046849,30]
[325308514,1714689860814,-2469.35,0.00046849,30]
[325308515,1714689860847,-500.0,0.00046849,30]
[325308516,1714689860881,-4275.78,0.00046849,30]
[325308517,1714689860915,-1534.14,0.00046849,30]
[325308518,1714689860949,-500.0,0.00046849,30]
[325308519,1714689860984,-500.0,0.00046849,30]
[325308520,1714689861018,-2253.17,0.00046849,30]
[325308521,1714689861052,-607.32,0.00046849,30]
[325308522,1714689861086,-1148.56,0.00046849,30]
[325308523,1714689861121,-1373.31,0.00046849,30]
[325308524,1714689861156,-2015.53,0.00046849,30]
[325308525,1714689861193,-2013.69,0.00046849,30]
[325308526,1714689861228,-500.0,0.00046849,30]
[325308527,1714689861262,-500.0,0.00046849,30]
[325308528,1714689861300,-500.0,0.00046849,30]
[325308529,1714689861346,-1696.95,0.00046849,30]
[325308530,1714689861382,-3156.14,0.00046849,30]
[325308531,1714689861418,-1742.24,0.00046849,30]
[325308532,1714689861449,-500.0,0.00046849,30]
[325308533,1714689861483,-1918.19,0.00046849,30]
[325308534,1714689861518,-500.0,0.00046849,30]
[325308535,1714689861553,-1175.06,0.00046849,30]
[325308536,1714689861588,-1375.86,0.00046849,30]
[325308537,1714689861620,-500.0,0.00046849,30]
[325308538,1714689861656,-2399.36,0.00046849,30]
[325308539,1714689861694,-923.74,0.00046849,30]
[325308540,1714689861734,-500.0,0.00046849,30]
[325308541,1714689861768,-500.0,0.00046849,30]
[325308542,1714689861799,-500.0,0.00046849,30]
[325308543,1714689861833,-9574.64920461,0.00046849,30]
[325308544,1714689888155,156.956807,0.00012899,2]
[325308545,1714689890489,186.53954695,0.00012898,2]
[325308570,1714690231975,-3054.87066275,0.00012983,2]
[325308571,1714690231985,-827.84816544,0.00012984,2]
[325308572,1714690231994,-206.28968198,0.00012999,2]
[325308573,1714690232003,-150.0,0.00013,2]
[325308574,1714690232012,-150.0,0.00017973,2]
[325308575,1714690232025,-450.0,0.00018,3]
[325308576,1714690232034,-499.99,0.00018,2]
[325308577,1714690232043,-150.99,0.00018,2]
[325308578,1714690232052,-6349.31168983,0.0001886,6]
[325308579,1714690232063,-814.47831017,0.0001886,6]
[325308580,1714690232072,-150.99,0.0001886,2]
[325308581,1714690232081,-500.0,0.00019178,2]
[325308582,1714690232091,-500.0,0.00019178,2]
[325308583,1714690232100,-531.99707651,0.00019178,2]
[325308584,1714690232111,-500.0,0.00019178,2]
[325308585,1714690232120,-500.0,0.00019178,2]
[325308586,1714690232129,-500.0,0.00019178,2]
[325308587,1714690232138,-156.956807,0.00019784,2]
[325308588,1714690232147,-295.57780632,0.0002,2]
[325308589,1714690232159,-131.07669748,0.0002,2]
[325308590,1714690232169,-500.0,0.0002,3]
[325308591,1714690232178,-236.59659493,0.0002,2]
[325308592,1714690232242,-950.37307554,0.0002,2]
[325308593,1714690232344,-3987.13851932,0.0002,2]
[325308594,1714690232353,-155.0,0.000209,2]
[325308595,1714690232365,-186.53954695,0.00021212,2]
[325308596,1714690232374,-626.33513578,0.00021213,2]
[325308597,1714690232384,-200.0,0.00021214,2]
[325308598,1714690232393,-173.63,0.0002127,2]
[325308599,1714690232402,-500.0,0.00021415,2]
[325308600,1714690232411,-1775.20753632,0.0002143,2]
[325308601,1714690232423,-788.819625,0.0002143,2]
[325308602,1714690232467,-319.50034176,0.0002143,2]
[325308603,1714690232571,-442.695,0.0002143,2]
[325308605,1714690232583,-860.85972681,0.0002143,2]
[325308608,1714690232595,-695.72180476,0.0002143,2]
[325308628,1714690237950,-596.04655466,0.0002143,2]
[325308629,1714690237963,-2410.59715987,0.0002143,2]
[325308630,1714690237975,-1364.88052,0.0002143,2]
[325308631,1714690237987,-985.97907498,0.0002143,2]
[325308632,1714690238126,-3531.74205304,0.0002143,2]
[325308633,1714690238275,-1656.10551066,0.0002143,2]
[325308634,1714690238286,-8471.84509214,0.0002143,2]
[325308635,1714690238297,-352.4,0.00021446,2]
[325308636,1714690238308,-1500.0,0.00021455,2]
[325308638,1714690238318,-150.0,0.00021611,2]
[325308639,1714690238327,-250.0,0.00021615,2]
[325308640,1714690238337,-240.58,0.00021644,2]
[325308641,1714690238347,-240.03,0.00021648,2]
[325308642,1714690238357,-375.0,0.00021917,2]
[325308643,1714690238369,-156.46,0.00021918,2]
[325308644,1714690238379,-250.0,0.00021918,2]
[325308645,1714690238388,-1182.02,0.00021918,2]
[325308646,1714690238399,-400.0,0.00021989,2]
[325308647,1714690238409,-550.0,0.00022,3]
[325308648,1714690238419,-876.28,0.0002262,2]
[325308649,1714690238428,-154.7689444,0.00023264,2]
[325308650,1714690238438,-1000.0,0.00023848,2]
[325308651,1714690238448,-295.94279363,0.0002394,2]
[325308652,1714690238458,-17686.94369324,0.00023999,2]
[325308653,1714690238468,-3037.15004169,0.00024,5]
[325308654,1714690238481,-600.0,0.00024,3]
[325308655,1714690238491,-352.4,0.00024127,2]
[325308656,1714690238501,-3000.0,0.000244,2]
[325308657,1714690238511,-400.0,0.00024737,2]
[325308658,1714690238521,-155.0,0.00025,2]
[325308659,1714690238894,-471.2169433,0.00025,2]
[325308660,1714690238910,-155.38116672,0.00025068,2]
[325308661,1714690238922,-40000.0,0.00025394,10]
[325308662,1714690238933,-257.41029778,0.000258,2]
[325308663,1714690238944,-5700.00353574,0.000259,2]
[325308664,1714690238955,-107616.3436,0.00025927,2]
[325308665,1714690238966,-650.0,0.00026,3]
[325308666,1714690238976,-150.0,0.000264,5]
[325308667,1714690238987,-5700.00353568,0.00026456,2]
[325308668,1714690238997,-150.0,0.00026653,2]
[325308669,1714690239007,-156.956807,0.00026669,2]
[325308670,1714690239016,-22778.4101279,0.00026725,2]
[325308671,1714690239026,-19959.16,0.00026728,2]
[325308672,1714690239036,-606.09280767,0.00026804,2]
[325308673,1714690239045,-352.4,0.00026807,120]
[325308674,1714690239054,-820.0,0.000269,3]
[325308675,1714690239064,-150.0,0.000269,5]
[325308676,1714690239075,-787.56352096,0.00026995,2]
[325308677,1714690239085,-1995.80108278,0.00026995,2]
[325308678,1714690239095,-155.04787307,0.00026995,2]
[325308679,1714690239105,-157.65912091,0.00026995,2]
[325308680,1714690239115,-2322.88499883,0.00026995,2]
[325308681,1714690239125,-3415.0326858,0.00026996,2]
[325308682,1714690239135,-2549.63,0.00026996,2]
[325308683,1714690239145,-20643.87245154,0.00027,2]
[325308684,1714690239155,-5700.00353568,0.00027011,2]
[325308685,1714690239165,-3000.0,0.000271,2]
[325308686,1714690239175,-157.050307,0.00027198,4]
[325308687,1714690239184,-157.050307,0.00027198,6]
[325308688,1714690239194,-157.050307,0.00027298,4]
[325308689,1714690239203,-157.050307,0.00027298,6]
[325308690,1714690239214,-157.050307,0.00027398,4]
[325308691,1714690239223,-157.050307,0.00027398,6]
[325308692,1714690239233,-2000.0,0.000274,2]
[325308693,1714690239242,-500.0,0.000274,2]
[325308694,1714690239252,-1200.0,0.000274,2]
[325308695,1714690239262,-150.0,0.000274,5]
[325308696,1714690239272,-400.0,0.00027486,2]
[325308697,1714690239282,-157.050307,0.00027498,4]
[325308698,1714690239291,-157.050307,0.00027498,6]
[325308699,1714690239300,-10009.11210573,0.00027499,2]
[325308700,1714690239309,-188.4034165,0.000275,2]
[325308701,1714690239322,-5700.00353568,0.00027567,2]
[325308702,1714690239332,-157.050307,0.00027598,4]
[325308703,1714690239341,-157.050307,0.00027598,6]
[325308704,1714690239351,-157.050307,0.00027698,4]
[325308705,1714690239361,-157.050307,0.00027698,6]
[325308706,1714690239372,-240.58,0.00027714,2]
[325308707,1714690239381,-971.0,0.00027719,2]
[325308708,1714690239390,-462.0,0.00027719,2]
[325308709,1714690239400,-2298.0,0.00027719,2]
[325308710,1714690239409,-1396.0,0.00027719,2]
[325308711,1714690239418,-1227.0,0.00027719,2]
[325308712,1714690239427,-1258.0,0.00027719,2]
[325308713,1714690239437,-542.0,0.00027719,2]
[325308714,1714690239446,-610.0,0.00027719,2]
[325308715,1714690239457,-1786.0,0.00027719,2]
[325308716,1714690239468,-808.0,0.00027719,2]
[325308717,1714690239477,-437.0,0.00027719,2]
[325308718,1714690239487,-421.0,0.00027719,2]
[325308719,1714690239498,-2448.0,0.00027719,2]
[325308720,1714690239508,-150.0,0.00027719,2]
[325308721,1714690239518,-1476.0,0.00027719,2]
[325308722,1714690239527,-3132.0,0.00027719,2]
[325308723,1714690239538,-1643.0,0.00027719,2]
[325308724,1714690239549,-444.0,0.00027719,2]
[325308725,1714690239559,-150.0,0.00027719,2]
[325308726,1714690239568,-215.0,0.00027719,2]
[325308727,1714690239579,-1139.0,0.00027719,2]
[325308728,1714690239588,-37750.0,0.00027719,2]
[325308729,1714690239598,-4688.486,0.00027719,2]
[325308730,1714690239607,-5738.0,0.00027719,2]
[325308731,1714690239617,-1057.0,0.00027719,2]
[325308732,1714690239627,-157.050307,0.00027798,4]
[325308733,1714690239637,-157.050307,0.00027798,6]
[325308734,1714690239646,-157.050307,0.00027898,4]
[325308735,1714690239655,-157.050307,0.00027898,6]
[325308736,1714690239665,-150.0,0.000279,5]
[325308737,1714690239674,-157.050307,0.00027998,4]
[325308738,1714690239683,-157.050307,0.00027998,6]
[325308739,1714690239693,-157.050307,0.00028098,4]
[325308740,1714690239702,-157.050307,0.00028098,6]
[325308741,1714690239712,-178.09129367,0.00028119,2]
[325308742,1714690239722,-151.40795445,0.00028119,2]
[325308743,1714690239731,-5700.00353568,0.00028122,2]
[325308744,1714690239741,-157.050307,0.00028198,4]
[325308745,1714690239751,-157.050307,0.00028198,6]
[325308746,1714690239761,-177.10224627,0.000282,2]
[325308747,1714690239771,-487.4707869,0.000282,2]
[325308748,1714690239780,-7611.13720808,0.000282,2]
[325308749,1714690239790,-872.41325993,0.00028214,2]
[325308750,1714690239799,-408.64578529,0.00028215,2]
[325308751,1714690239814,-155.0,0.00028215,2]
[325308752,1714690239823,-219.93987885,0.00028215,2]
[325308753,1714690239833,-196.9517741,0.00028215,2]
[325308754,1714690239842,-155.0,0.00028215,2]
[325308755,1714690239854,-1125.69656936,0.00028215,2]
[325308756,1714690239864,-790.05785039,0.00028215,2]
[325308757,1714690239873,-4519.49529704,0.00028215,2]
[325308758,1714690239883,-155.0,0.00028215,2]
[325308759,1714690239893,-567.85204548,0.00028216,2]
[325308760,1714690239903,-2198.06,0.00028216,2]
[325308761,1714690239913,-888.0,0.00028216,3]
[325308762,1714690239922,-276.0,0.00028217,5]
[325308763,1714690239931,-297423.11425241,0.00028217,5]
[325308764,1714690239946,-385.46466382,0.00028217,5]
[325308765,1714690239958,-843.11029527,0.00028217,5]
[325308766,1714690239970,-1005.42999999,0.00028217,5]
[325308767,1714690241088,-157.050307,0.00028214,6]
[325308768,1714690241097,-342.949693,0.00028217,5]
[325308769,1714690241110,-5628.80000003,0.00028217,5]
[325308770,1714690241123,-281.62,0.00028217,5]
[325308771,1714690241135,-80926.38283429,0.00028217,5]
[325308772,1714690241145,-56998.77644343,0.00028217,2]
[325308773,1714690241156,-24263.73465755,0.00028217,2]
[325308774,1714690241168,-557.09804496,0.00028217,2]
[325308775,1714690241180,-3025.62429553,0.00028217,2]
[325308776,1714690241192,-285.0339526,0.00028217,2]
[325308777,1714690241225,-1006.632,0.00028217,2]
[325308778,1714690241237,-2693521.97197144,0.00028217,2]
[325308779,1714690241668,-450.95,0.00028207,3]
[325308780,1714690241678,-2103100.56664537,0.00028217,2]
[325308781,1714690241687,-186.49892996,0.00028219,2]
[325308782,1714690241696,-500.0,0.00028219,2]
[325308783,1714690241706,-500.0,0.00028219,2]
[325308784,1714690241715,-500.0,0.00028219,2]
[325308785,1714690241724,-500.0,0.00028219,2]
[325308786,1714690241734,-500.0,0.00028219,2]
[325308787,1714690241743,-371.41901313,0.00028219,2]
[325308788,1714690241752,-500.0,0.00028219,2]
[325308789,1714690241762,-500.0,0.00028219,2]
[325308790,1714690241771,-500.0,0.00028219,2]
[325308791,1714690241781,-500.0,0.00028219,2]
[325308792,1714690241796,-500.0,0.00028219,2]
[325308793,1714690241810,-500.0,0.00028219,2]
[325308794,1714690241819,-500.0,0.00028219,2]
[325308795,1714690241828,-359.9247963,0.00028219,2]
[325308796,1714690241839,-384.35857526,0.00028219,2]
[325308797,1714690241851,-500.0,0.00028219,2]
[325308798,1714690241860,-500.0,0.00028219,2]
[325308799,1714690241870,-500.0,0.00028219,2]
[325308800,1714690241879,-500.0,0.00028219,2]
[325308801,1714690241891,-500.0,0.00028219,2]
[325308802,1714690241900,-500.0,0.00028219,2]
[325308803,1714690241910,-303.19970765,0.00028219,2]
[325308804,1714690241919,-2216.58,0.000283,2]
[325308805,1714690241928,-1305.27,0.000283,2]
[325308806,1714690241937,-151.4079542,0.00028373,2]
[325308807,1714690241946,-150.0,0.000284,5]
[325308808,1714690241956,-168446.14698836,0.00028468,2]
[325308809,1714690241966,-118833.63946994,0.00028468,2]
[325308810,1714690241976,-1210.0,0.00028468,2]
[325308811,1714690241985,-3358.76892539,0.00028468,2]
[325308812,1714690241995,-339.13201308,0.00028468,2]
[325308813,1714690242006,-2926.6708072,0.00028468,2]
[325308814,1714690242018,-4686.02942402,0.00028468,2]
[325308815,1714690242028,-222.03625007,0.00028468,2]
[325308816,1714690242039,-1480.36021005,0.00028468,2]
[325308817,1714690242048,-7179.43152123,0.00028468,2]
[325308818,1714690242057,-1002.7763824,0.00028468,2]
[325308819,1714690242066,-10412.6910427,0.00028468,2]
[325308820,1714690242075,-5047.53024466,0.00028468,2]
[325308821,1714690242084,-2660.961748,0.00028468,2]
[325308822,1714690242094,-2389.01774547,0.00028468,2]
[325308823,1714690242104,-5458.749192,0.00028468,2]
[325308824,1714690242116,-133666.80620644,0.00028468,2]
[325308825,1714690242125,-2606.43294466,0.00028468,2]
[325308826,1714690242134,-3161.31822718,0.00028468,2]
[325308827,1714690242143,-159.7043358,0.00028468,2]
[325308828,1714690242151,-22189.64775705,0.00028468,2]
[325308829,1714690242161,-14725.3341411,0.00028468,2]
[325308830,1714690242171,-797.23451755,0.00028468,2]
[325308831,1714690242180,-1040.48222037,0.00028468,2]
[325308832,1714690242189,-5810.70985476,0.00028468,2]
[325308833,1714690242198,-175.97417269,0.00028468,2]
[325308834,1714690242207,-70185.58017938,0.00028468,2]
[325308835,1714690242216,-847.03158152,0.00028468,2]
[325308836,1714690242225,-1017.80799977,0.00028468,2]
[325308837,1714690242236,-185.92011639,0.00028468,2]
[325308838,1714690242247,-8988.85374119,0.00028468,2]
[325308839,1714690242260,-1276.24352169,0.00028468,2]
[325308840,1714690242269,-4811.58881571,0.00028468,2]
[325308841,1714690242278,-2000.0,0.00028468,30]
[325308842,1714690242287,-2000.0,0.00028468,30]
[325308843,1714690242296,-2000.0,0.00028468,30]
[325308844,1714690242305,-2000.0,0.00028468,30]
[325308845,1714690242314,-479.78252202,0.00028468,2]
[325308846,1714690242323,-2000.0,0.00028468,30]
[325308847,1714690242332,-2000.0,0.00028468,30]
[325308848,1714690242341,-2000.0,0.00028468,30]
[325308849,1714690242350,-225.699999,0.00028468,30]
[325308852,1714690242359,-22096.55833122,0.00028468,2]
[325308853,1714690242622,-12496.06662708,0.00028468,2]
[325308854,1714690242632,-1870.97217566,0.00028468,2]
[325308855,1714690242642,-5438.57009205,0.00028468,2]
[325308856,1714690242651,-643.0,0.00028468,2]
[325308857,1714690242660,-945.10171349,0.00028468,2]
[325308858,1714690242670,-8000.0,0.00028468,2]
[325308859,1714690242679,-558.22861077,0.00028468,2]
[325308860,1714690242689,-1789.63456621,0.00028468,2]
[325308861,1714690242698,-170.10328989,0.00028468,2]
[325308862,1714690242707,-16309.83469082,0.00028468,2]
[325308863,1714690242716,-7048.68294857,0.00028468,2]
[325308864,1714690242726,-2614.55872079,0.00028468,2]
[325308865,1714690242735,-550.0,0.00028468,2]
[325308866,1714690242744,-982.15917677,0.00028468,2]
[325308870,1714690242754,-10429.93577812,0.00028468,2]
[325308874,1714690242763,-165093.38500394,0.00028468,2]
[325308878,1714690242773,-14562.74329126,0.00028468,2]
[325308882,1714690242782,-6000.0,0.00028468,2]
[325308886,1714690242797,-1006.84051093,0.00028468,2]
[325308890,1714690242806,-10338.22088171,0.00028468,2]
[325308894,1714690242816,-14257.36069647,0.00028468,2]
[325308898,1714690242826,-548.78490488,0.00028468,2]
[325308902,1714690242835,-150.0,0.00028468,2]
[325308906,1714690242845,-636.44648699,0.00028468,2]
[325308910,1714690242854,-610.46028454,0.00028468,2]
[325308915,1714690242863,-209.31851089,0.00028468,2]
[325308920,1714690242873,-149540.96728454,0.00028468,2]
[325308924,1714690242883,-438.01448725,0.00028468,2]
[325308928,1714690242892,-1040.05683332,0.00028468,2]
[325308931,1714690242902,-20709.34505924,0.00028468,2]
[325308935,1714690242911,-2500.0,0.00028468,2]
[325308939,1714690242920,-564.66151276,0.00028468,2]
[325308942,1714690242930,-35056.81810591,0.00028468,2]
[325308944,1714690242939,-2319.54832475,0.00028468,2]
[325308946,1714690242948,-234.5848936,0.00028468,2]
[325308948,1714690242957,-525.29453656,0.00028468,2]
[325308950,1714690242966,-406979.84936101,0.00028468,2]
[325308953,1714690242976,-10227.67840591,0.00028468,2]
[325308955,1714690242985,-889.27244779,0.00028468,2]
[325308957,1714690242994,-26880.02058628,0.00028468,2]
[325308959,1714690243003,-9290.04578352,0.00028468,2]
[325308961,1714690243012,-469.30221802,0.00028468,2]
[325308962,1714690243022,-385.68034344,0.00028468,2]
[325308963,1714690243031,-240.86577566,0.00028468,2]
[325308964,1714690243040,-1077.07606983,0.00028468,2]
[325308965,1714690243049,-14832.49848767,0.00028468,2]
[325308966,1714690243059,-21412.94346065,0.00028468,2]
[325308967,1714690243068,-317.44541329,0.00028468,2]
[325308968,1714690243077,-1769.26520594,0.00028468,2]
[325308969,1714690243086,-1000.0,0.00028468,2]
[325308970,1714690243095,-533.77743621,0.00028468,2]
[325308971,1714690243105,-4877.18802333,0.00028468,2]
[325308972,1714690243114,-4898.12584704,0.00028468,2]
[325308973,1714690243124,-355.29986886,0.00028468,2]
[325308974,1714690243133,-593.94489867,0.00028468,2]
[325308975,1714690243142,-9514.7014689,0.00028468,2]
[325308976,1714690243151,-9268.86082036,0.00028468,2]
[325308977,1714690243160,-34982.18598889,0.00028468,2]
[325308978,1714690243169,-501621.4365916,0.00028468,2]
[325308979,1714690243178,-1790.5031107,0.00028468,2]
[325308980,1714690243188,-338.1712157,0.00028468,2]
[325308981,1714690243197,-5045.95742576,0.00028468,2]
[325308982,1714690243207,-11546.57830192,0.00028468,2]
[325308983,1714690243216,-13000.0,0.00028468,2]
[325308984,1714690243225,-1007.23913251,0.00028468,2]
[325308985,1714690243234,-13696.59443784,0.00028468,2]
[325308986,1714690243244,-214.59495167,0.00028468,2]
[325308987,1714690243253,-1006.36335695,0.00028468,2]
[325308988,1714690243262,-5006.52060959,0.00028468,2]
[325308989,1714690243272,-23125.43373043,0.00028468,2]
[325308990,1714690243281,-150.0,0.00028468,2]
[325308991,1714690243290,-150.0,0.00028468,2]
[325308992,1714690243299,-200.0,0.00028468,2]
[325308993,1714690243309,-188.0,0.00028468,30]
[325308994,1714690243317,-652.8,0.00028468,30]
[325308995,1714690243329,-685.0,0.00028468,30]
[325308996,1714690243338,-3425.0,0.00028468,30]
[325308997,1714690243347,-200.0,0.00028468,30]
[325308999,1714690243356,-396.311705,0.00028468,30]
[325309000,1714690243366,-300.0,0.00028564,5]
[325309002,1714690243376,-151.4079542,0.00028627,2]
[325309003,1714690243385,-5700.00353568,0.00028678,2]
[325309004,1714690243394,-150.0,0.00028688,4]
[325309005,1714690243404,-155.42,0.00028853,2]
[325309006,1714690243423,-151.4079542,0.00028881,2]
[325309007,1714690243435,-150.0,0.000289,6]
[325309008,1714690243445,-911.44,0.00028904,2]
[325309009,1714690243457,-3663.97625945,0.0002895,2]
[325309010,1714690243468,-150.0,0.00028999,10]
[325309011,1714690243477,-150.0,0.00028999,10]
[325309012,1714690243487,-150.0,0.00028999,10]
[325309013,1714690243497,-150.0,0.00028999,10]
[325309014,1714690243507,-150.0,0.00028999,10]
[325309015,1714690243517,-150.0,0.00028999,10]
[325309016,1714690243527,-150.0,0.00028999,10]
[325309017,1714690243537,-150.0,0.00028999,10]
[325309018,1714690243548,-150.0,0.00028999,10]
[325309019,1714690243558,-150.0,0.00028999,10]
[325309020,1714690243568,-150.0,0.00028999,10]
[325309021,1714690243578,-150.0,0.00028999,10]
[325309022,1714690243588,-150.0,0.00028999,10]
[325309023,1714690243598,-150.0,0.00028999,10]
[325309024,1714690243608,-150.0,0.00028999,10]
[325309026,1714690243618,-150.0,0.00028999,10]
[325309028,1714690243628,-222162.08400167,0.00029,2]
[325309029,1714690243637,-1644.72,0.00029,2]
[325309030,1714690243647,-151.4079542,0.00029135,2]